[Event "Smuk Skak GM Tournament 2024"]
[Site "Skanderborg"]
[Date "2024.08.21"]
[Round "5.5"]
[White "Kanov, Nikola"]
[Black "Vinter-Schou, Uffe"]
[Result "1-0"]
[ECO "B42"]
[WhiteElo "2414"]
[BlackElo "2340"]
[Annotator "RC"]
[PlyCount "81"]
[EventDate "2024.08.11"]
[EventType "tourn"]
[EventCountry "DEN"]
[SourceTitle "playchess.com"]
[Source "ChessBase"]
[SourceQuality "1"]
[TimeControl "40/5400+30:1800+30"]

1. e4 {[%emt 0:00:06]} c5 {[%emt 0:00:07]} 2. Nf3 {[%emt 0:00:11]} e6 {[%emt 0:00:07]} 3. d4 {[%emt 0:00:24]} cxd4 {[%emt 0:00:02]} 4. Nxd4 {[%emt 0:00:07]} a6 {[%emt 0:00:14]} 5. Bd3 {[%emt 0:01:01]} Bc5 {[%emt 0:01:15]} 6. Nb3 {[%emt 0:00:20]} Ba7 {[%emt 0:00:14]} 7. Qe2 {[%emt 0:00:41]} Nc6 {[%emt 0:00:19]} 8. Be3 {[%emt 0:02:29]} Nge7 {[%emt 0:00:59]} 9. Nc3 {[%emt 0:02:28]} d6 {[%emt 0:05:22]} 10. O-O-O {[%emt 0:07:46]} b5 {[%emt 0:01:37]} 11. h4 {[%emt 0:05:41]} b4 {[%emt 0:09:58]} 12. Na4 {[%emt 0:01:20]} Qc7 {[%emt 0:10:46]} 13. h5 {[%emt 0:10:43]} Ne5 {[%emt 0:10:02]} 14. Bxa7 {[%emt 0:10:25]} Rxa7 {[%emt 0:04:46]} 15. f4 {[%emt 0:05:19]} Nxd3+ {[%emt 0:07:08]} 16. Qxd3 {[%emt 0:05:55]} Bd7 {[%emt 0:00:22]} 17. e5 {[%emt 0:02:27]} dxe5 {[%emt 0:04:44]} 18. Nac5 {[%emt 0:00:50]} Bb5 {[%emt 0:00:21]} 19. Qh3 {[%emt 0:03:25]} exf4 {[%emt 0:07:37]} 20. h6 {[%emt 0:02:43]} g5 {[%emt 0:08:59]} 21. Qh5 {[%emt 0:06:13]} Ng6 {[%emt 0:00:52]} 22. Qxg5 {[%emt 0:01:47]} Qe7 {[%emt 0:00:02]} 23. Qh5 {[%emt 0:05:40]} O-O {[%emt 0:00:12]} 24. Rhe1 {[%emt 0:11:00]} Rc7 {[%emt 0:01:22]} 25. Ne4 {[%emt 0:01:14]} Rd8 {[%emt 0:06:30]} 26. Rxd8+ {[%emt 0:01:30]} Qxd8 {[%emt 0:00:02]} 27. Rd1 {[%emt 0:00:49]} Qe7 {[%emt 0:00:12]} 28. Nd4 {[%emt 0:03:13]} Bc4 {[%emt 0:05:08]} 29. Nf3 {[%emt 0:01:03]} b3 {[%emt 0:06:43]} 30. axb3 {[%emt 0:01:11]} Bxb3 {[%emt 0:00:02]} 31. Rd2 {[%emt 0:00:38]} Bd5 {[%emt 0:06:46]} 32. Rxd5 {[%emt 0:00:14]} exd5 {[%emt 0:00:01]} 33. Qxd5 {[%emt 0:00:07]} Rc8 {[%emt 0:01:16]} 34. Qd4 {[%emt 0:00:54]} f5 {[%emt 0:00:58]} 35. Nf6+ {[%emt 0:00:14]} Kf8 {[%emt 0:00:10]} 36. Nd5 {[%emt 0:00:33]} Qd7 {[%emt 0:01:55]} 37. Qf6+ {[%emt 0:03:35]} Qf7 {[%emt 0:00:44]} 38. Qd6+ {[%emt 0:01:21]} Ne7 {[%emt 0:00:15]} 39. Nb6 {[%emt 0:01:48]} Rc6 {[%emt 0:01:17]} 40. Qd8+ {[%emt 0:00:17]} Qe8 {[%emt 0:00:02]} 41. Nd7+ {[%emt 0:30:06]} 1-0

[Event "Smuk Skak GM Tournament 2024"]
[Site "Skanderborg"]
[Date "2024.08.22"]
[Round "6.1"]
[White "Fromm, Marius"]
[Black "Kosakowski, Jakub"]
[Result "0-1"]
[ECO "B11"]
[WhiteElo "2447"]
[BlackElo "2501"]
[Annotator "RC"]
[PlyCount "88"]
[EventDate "2024.08.11"]
[EventType "tourn"]
[EventCountry "DEN"]
[SourceTitle "playchess.com"]
[Source "ChessBase"]
[SourceQuality "1"]
[TimeControl "40/5400+30:1800+30"]

1. e4 {[%emt 0:00:03]} c6 {[%emt 0:00:32]} 2. Nc3 {[%emt 0:00:06]} d5 {[%emt 0:00:12]} 3. Nf3 {[%emt 0:00:04]} Bg4 {[%emt 0:01:29]} 4. h3 {[%emt 0:00:38]} Bxf3 {[%emt 0:00:11]} 5. Qxf3 {[%emt 0:00:04]} e6 {[%emt 0:00:11]} 6. Be2 {[%emt 0:00:05]} g6 {[%emt 0:06:49]} 7. d4 {[%emt 0:12:05]} Bg7 {[%emt 0:02:12]} 8. Be3 {[%emt 0:01:23]} Ne7 {[%emt 0:01:49]} 9. O-O-O {[%emt 0:06:14]} Nd7 {[%emt 0:01:46]} 10. h4 {[%emt 0:03:44]} h6 {[%emt 0:04:19]} 11. g4 {[%emt 0:05:41]} b5 {[%emt 0:10:14]} 12. exd5 {[%emt 0:00:26]} cxd5 {[%emt 0:02:50]} 13. Bxb5 {[%emt 0:03:38]} O-O {[%emt 0:00:16]} 14. h5 {[%emt 0:02:29]} g5 {[%emt 0:05:31]} 15. Qe2 {[%emt 0:05:05]} a6 {[%emt 0:06:36]} 16. Bxd7 {[%emt 0:03:15]} Qxd7 {[%emt 0:00:06]} 17. f4 {[%emt 0:00:04]} f6 {[%emt 0:03:49]} 18. fxg5 {[%emt 0:04:30]} fxg5 {[%emt 0:00:40]} 19. Rhf1 {[%emt 0:00:22]} Rfc8 {[%emt 0:02:04]} 20. Bg1 {[%emt 0:05:15]} Nc6 {[%emt 0:16:14]} 21. Rfe1 {[%emt 0:13:24]} Re8 {[%emt 0:00:51]} 22. Qd3 {[%emt 0:08:31]} Rac8 {[%emt 0:02:35]} 23. Qg6 {[%emt 0:02:45]} Na5 {[%emt 0:03:24]} 24. Rd3 {[%emt 0:02:38]} Rc6 {[%emt 0:08:20]} 25. Nxd5 {[%emt 0:03:27]} e5 {[%emt 0:00:15]} 26. Qe4 {[%emt 0:01:19]} Rce6 {[%emt 0:01:13]} 27. dxe5 {[%emt 0:02:11]} Rxe5 {[%emt 0:00:45]} 28. Qxe5 {[%emt 0:00:38]} Rxe5 {[%emt 0:01:34]} 29. Rxe5 {[%emt 0:00:07]} Qxg4 {[%emt 0:04:18]} 30. Re8+ {[%emt 0:04:12]} Kh7 {[%emt 0:01:03]} 31. Bb6 {[%emt 0:04:11]} Nc6 {[%emt 0:01:57]} 32. a3 {[%emt 0:04:15]} Qxh5 {[%emt 0:08:13]} 33. Re1 {[%emt 0:03:15]} g4 {[%emt 0:01:47]} 34. Bc7 {[%emt 0:00:49]} Nd4 {[%emt 0:01:09]} 35. Re7 {[%emt 0:00:33]} Qxd5 {[%emt 0:00:09]} 36. Be5 {[%emt 0:00:20]} Qxe5 {[%emt 0:00:05]} 37. Rxe5 {[%emt 0:00:08]} Bxe5 {[%emt 0:00:04]} 38. Kd2 {[%emt 0:00:41]} g3 {[%emt 0:02:33]} 39. Ke3 {[%emt 0:00:23]} Nxc2+ {[%emt 0:00:53]} 40. Ke2 {[%emt 0:00:10]} Kg6 {[%emt 0:00:42]} 41. Rd8 {[%emt 0:30:48]} Nd4+ {[%emt 0:03:50]} 42. Ke3 {[%emt 0:00:00]} Nf5+ {[%emt 0:01:03]} 43. Kf3 {[%emt 0:00:00]} Nh4+ {[%emt 0:02:44]} 44. Ke4 {[%emt 0:00:00]} Bxb2 {[%emt 0:01:28]} 0-1

[Event "Smuk Skak GM Tournament 2024"]
[Site "Skanderborg"]
[Date "2024.08.22"]
[Round "6.2"]
[White "Pajeken, Jakob Leon"]
[Black "Licznerski, Lukasz"]
[Result "1-0"]
[ECO "A07"]
[WhiteElo "2416"]
[BlackElo "2427"]
[Annotator "RC"]
[PlyCount "147"]
[EventDate "2024.08.11"]
[EventType "tourn"]
[EventCountry "DEN"]
[SourceTitle "playchess.com"]
[Source "ChessBase"]
[SourceQuality "1"]
[TimeControl "40/5400+30:1800+30"]

1. Nf3 {[%emt 0:00:10]} Nf6 {[%emt 0:05:04]} 2. g3 {[%emt 0:00:15]} d5 {[%emt 0:00:28]} 3. Bg2 {[%emt 0:00:13]} c6 {[%emt 0:00:32]} 4. O-O {[%emt 0:00:17]} Bg4 {[%emt 0:00:04]} 5. h3 {[%emt 0:00:07]} Bh5 {[%emt 0:01:06]} 6. c4 {[%emt 0:00:47]} e6 {[%emt 0:02:16]} 7. Qb3 {[%emt 0:00:51]} Qb6 {[%emt 0:00:59]} 8. d3 {[%emt 0:00:36]} Nbd7 {[%emt 0:00:25]} 9. cxd5 {[%emt 0:00:41]} Qxb3 {[%emt 0:10:51]} 10. axb3 {[%emt 0:00:13]} Bxf3 {[%emt 0:03:07]} 11. Bxf3 {[%emt 0:00:00]} exd5 {[%emt 0:00:32]} 12. Be3 {[%emt 0:10:21]} Bc5 {[%emt 0:00:54]} 13. Bxc5 {[%emt 0:03:38]} Nxc5 {[%emt 0:00:02]} 14. Nd2 {[%emt 0:02:36]} Na6 {[%emt 0:05:47]} 15. Ra4 {[%emt 0:04:31]} Nd7 {[%emt 0:02:19]} 16. Rfa1 {[%emt 0:04:10]} O-O-O {[%emt 0:01:58]} 17. d4 {[%emt 0:03:19]} Kb8 {[%emt 0:01:16]} 18. e3 {[%emt 0:00:41]} Nc7 {[%emt 0:02:54]} 19. Be2 {[%emt 0:01:24]} a6 {[%emt 0:00:24]} 20. b4 {[%emt 0:02:05]} g5 {[%emt 0:02:05]} 21. Bd3 {[%emt 0:01:33]} Rde8 {[%emt 0:06:00]} 22. Kg2 {[%emt 0:01:43]} h5 {[%emt 0:04:48]} 23. Nf3 {[%emt 0:01:01]} g4 {[%emt 0:06:46]} 24. Ng1 {[%emt 0:04:36]} gxh3+ {[%emt 0:02:05]} 25. Nxh3 {[%emt 0:00:05]} Reg8 {[%emt 0:00:07]} 26. Kf3 {[%emt 0:04:13]} Nf6 {[%emt 0:03:29]} 27. Rg1 {[%emt 0:00:45]} Ne6 {[%emt 0:04:14]} 28. Raa1 {[%emt 0:02:53]} Kc7 {[%emt 0:00:38]} 29. Bf5 {[%emt 0:01:56]} Ng7 {[%emt 0:09:25]} 30. Bd3 {[%emt 0:00:23]} Ne6 {[%emt 0:00:05]} 31. Bf5 {[%emt 0:00:08]} Kd6 {[%emt 0:01:37]} 32. Rh1 {[%emt 0:02:17]} Rh6 {[%emt 0:03:13]} 33. Ke2 {[%emt 0:05:19]} Ng7 {[%emt 0:05:44]} 34. Bd3 {[%emt 0:00:43]} Ne6 {[%emt 0:00:25]} 35. Bf5 {[%emt 0:00:34]} Re8 {[%emt 0:03:50]} 36. Bxe6 {[%emt 0:01:06]} fxe6 {[%emt 0:00:52]} 37. Ng5 {[%emt 0:00:27]} Re7 {[%emt 0:00:40]} 38. Rh4 {[%emt 0:02:51]} Rg7 {[%emt 0:02:46]} 39. f4 {[%emt 0:01:37]} Rhg6 {[%emt 0:04:18]} 40. Kf3 {[%emt 0:02:16]} Rxg5 {[%emt 0:01:02]} 41. fxg5 {[%emt 0:30:07]} Rxg5 {[%emt 0:30:01]} 42. Rf4 {[%emt 0:01:32]} Rg6 {[%emt 0:00:24]} 43. Rh1 {[%emt 0:02:08]} Kc7 {[%emt 0:00:00]} 44. Rfh4 {[%emt 0:00:00]} Rg5 {[%emt 0:00:00]} 45. Rf4 {[%emt 0:00:00]} Ne4 {[%emt 0:00:00]} 46. Rf7+ {[%emt 0:00:00]} Kb6 {[%emt 0:00:00]} 47. Rh3 {[%emt 0:00:00]} Nd6 {[%emt 0:00:00]} 48. Rf6 {[%emt 0:00:00]} Kb5 {[%emt 0:00:00]} 49. Kf4 {[%emt 0:00:00]} Rg4+ {[%emt 0:00:00]} 50. Ke5 {[%emt 0:00:00]} Ne4 {[%emt 0:00:00]} 51. Rf7 {[%emt 0:05:33]} b6 {[%emt 0:00:00]} 52. Rb7 {[%emt 0:01:05]} Nxg3 {[%emt 0:00:00]} 53. Kxe6 {[%emt 0:00:41]} Re4+ {[%emt 0:00:00]} 54. Kd7 {[%emt 0:00:59]} Rxe3 {[%emt 0:00:11]} 55. Rc7 {[%emt 0:00:39]} Rf3 {[%emt 0:09:44]} 56. Rxc6 {[%emt 0:01:07]} Rf7+ {[%emt 0:00:07]} 57. Ke6 {[%emt 0:01:02]} Kxc6 {[%emt 0:00:22]} 58. Kxf7 {[%emt 0:00:06]} Ne2 {[%emt 0:00:29]} 59. Kf6 {[%emt 0:01:12]} Nxd4 {[%emt 0:00:32]} 60. Ke5 {[%emt 0:00:08]} Nb5 {[%emt 0:02:19]} 61. Rxh5 {[%emt 0:00:04]} Nc7 {[%emt 0:01:08]} 62. Rh6+ {[%emt 0:00:33]} Kb5 {[%emt 0:00:30]} 63. Rh7 {[%emt 0:01:57]} Kc6 {[%emt 0:00:04]} 64. Rh1 {[%emt 0:01:41]} Kb5 {[%emt 0:00:51]} 65. Rc1 {[%emt 0:00:19]} Ne8 {[%emt 0:00:01]} 66. Rc8 {[%emt 0:00:08]} Ng7 {[%emt 0:00:02]} 67. Rg8 {[%emt 0:00:05]} Nh5 {[%emt 0:01:35]} 68. Rg5 {[%emt 0:00:04]} Kxb4 {[%emt 0:00:27]} 69. Rxh5 {[%emt 0:00:03]} Kb3 {[%emt 0:00:35]} 70. Rh2 {[%emt 0:00:33]} b5 {[%emt 0:00:22]} 71. Kxd5 {[%emt 0:00:12]} a5 {[%emt 0:00:12]} 72. Kc5 {[%emt 0:00:05]} b4 {[%emt 0:00:05]} 73. Kb5 {[%emt 0:00:05]} a4 {[%emt 0:00:06]} 74. Rh3+ {[%emt 0:00:05]} 1-0

[Event "Smuk Skak GM Tournament 2024"]
[Site "Skanderborg"]
[Date "2024.08.22"]
[Round "6.3"]
[White "Thybo, Jesper Sondergaard"]
[Black "Kanov, Nikola"]
[Result "1/2-1/2"]
[ECO "A33"]
[WhiteElo "2554"]
[BlackElo "2414"]
[Annotator "TA"]
[PlyCount "63"]
[EventDate "2024.08.11"]
[EventType "tourn"]
[EventCountry "DEN"]
[SourceTitle "playchess.com"]
[Source "ChessBase"]
[SourceQuality "1"]
[TimeControl "40/5400+30:1800+30"]

{[%evp 17,63,7,5,0,0,0,3,13,23,4,20,15,31,13,12,-17,-11,-9,13,14,11,18,6,15,24,21,20,22,30,22,22,0,0,0,0,-46,-43,-45,-45,-43,-43,-51,0,-18,0,-45,0,-28]} 1. Nf3 {[%emt 0:00:04]} c5 {[%emt 0:00:43]} 2. c4 {[%emt 0:00:18]} Nc6 {[%emt 0:00:32]} 3. d4 {[%emt 0:00:22]} cxd4 {[%emt 0:00:35]} 4. Nxd4 {[%emt 0:00:10]} Nf6 {[%emt 0:00:53]} 5. Nc3 {[%emt 0:00:22]} e6 {[%emt 0:00:36][%cal Be7e6,Be6e5][%mdl 32]} 6. e4 {[%emt 0:00:25]} Bb4 {[%emt 0:02:24]} 7. Nxc6 {[%emt 0:00:25]} bxc6 {[%emt 0:00:16]} 8. Bd3 {[%emt 0:00:45]} e5 {[%emt 0:01:27]} 9. O-O {[%emt 0:01:00]} O-O {[%emt 0:03:37]} 10. h3 {[%emt 0:00:22]} Qe7 {[%emt 0:08:15]} 11. Be3 {[%emt 0:03:55]} Rd8 {[%emt 0:11:32]} 12. Qc2 {[%emt 0:10:55]} h6 {[%emt 0:03:56]} 13. Rad1 {[%emt 0:05:06]} Bb7 {[%emt 0:06:14]} 14. a3 {[%emt 0:14:57]} Bxc3 {[%emt 0:05:49]} 15. Qxc3 {[%emt 0:00:46]} d5 {[%emt 0:00:55]} 16. Qb4 {[%emt 0:04:00]} Qxb4 {[%emt 0:03:34]} 17. axb4 {[%emt 0:00:30]} dxc4 {[%emt 0:03:21]} 18. Bxc4 {[%emt 0:03:01] next f3 is good for White.} Nxe4 {[%emt 0:02:55]} 19. Rxd8+ {[%emt 0:06:48]} Rxd8 {[%emt 0:00:02]} 20. Re1 {[%emt 0:00:22]} ({Much weaker is} 20. Bxa7 Nd2 21. Rc1 (21. Rd1 $2 Nf3+ 22. gxf3 Rxd1+ 23. Kg2 Bc8 $19) 21... Nxc4 22. Rxc4 Rd1+ 23. Kh2 Rd2 $15) 20... Nd2 {[%emt 0:14:14]} 21. Be2 {[%emt 0:04:49]} ({Don't blunder} 21. Rd1 $2 Nf3+ 22. gxf3 Rxd1+ $19) 21... Nb3 {[%emt 0:02:08] Prevents Ra1} 22. Bxa7 {[%emt 0:00:23]} Ra8 {[%emt 0:02:26]} 23. Bb6 {[%emt 0:17:37]} Ra4 {[%emt 0:03:27]} 24. Bd3 {[%emt 0:13:00]} Ba6 {[%emt 0:03:29]} 25. b5 {[%emt 0:04:40]} Bxb5 {[%emt 0:01:40]} 26. Bc2 {[%emt 0:00:01]} (26. Bxb5 $11 {is superior.} cxb5 27. Rxe5) 26... Ra1 $1 $15 {[%emt 0:01:14]} 27. Rxa1 {[%emt 0:02:22]} Nxa1 {[%emt 0:00:03]} 28. Bd1 {[%emt 0:00:06]} Bc4 {[%emt 0:01:27]} 29. Ba4 {[%emt 0:01:13]} Bb5 {[%emt 0:03:35]} 30. Bd1 {[%emt 0:00:08]} Bc4 {[%emt 0:00:51]} 31. Ba4 {[%emt 0:00:11]} Bb5 {[%emt 0:00:12]} 32. Bd1 {Weighted Error Value: White=0.07 (flawless) /Black=0.07 (flawless) .  Mistake:       	White=1     	---        Inaccurate:     	White=1     	Black=1      OK:         	White=12    	Black=8      Best:        	White=1     	Black=2      Strong:       	---       	Black=1} 1/2-1/2

[Event "Smuk Skak GM Tournament 2024"]
[Site "Skanderborg"]
[Date "2024.08.22"]
[Round "6.4"]
[White "Solodovnichenko, Yuri"]
[Black "Olsen, Filip Boe"]
[Result "1-0"]
[ECO "B51"]
[WhiteElo "2491"]
[BlackElo "2431"]
[Annotator "TA"]
[PlyCount "109"]
[EventDate "2024.08.11"]
[EventType "tourn"]
[EventCountry "DEN"]
[SourceTitle "playchess.com"]
[Source "ChessBase"]
[SourceQuality "1"]
[TimeControl "40/5400+30:1800+30"]

{[%evp 13,109,33,239,243,239,256,252,254,244,251,270,275,305,287,288,293,294,275,286,304,298,289,295,299,293,306,279,207,214,216,209,213,251,241,262,234,281,288,328,341,345,350,347,350,342,354,377,362,384,375,383,375,363,329,373,373,373,372,364,333,392,388,454,444,431,388,380,380,485,478,553,518,560,558,682,644,652,671,693,672,667,694,883,876,872,850,1389,1395,1277,1305,1573,1452,1458,1290,29979,29980,29982,29983]} 1. e4 {[%emt 0:00:05]} c5 {[%emt 0:00:07]} 2. Nf3 {[%emt 0:00:04]} d6 {[%emt 0:00:10]} 3. Bb5+ {[%emt 0:00:22]} Nd7 {[%emt 0:00:09]} 4. a4 {[%emt 0:00:08]} Ngf6 {[%emt 0:00:35]} 5. Nc3 {[%emt 0:00:06]} g6 {[%emt 0:00:33]} 6. a5 {[%emt 0:00:25] B51: Sicilian: Moscow Variation (3 Bb5+) without 3...Bd7.} a6 {[%emt 0:00:08]} 7. Bc4 {[%emt 0:00:35]} Bg7 $2 {[%emt 0:01:10] [#]} (7... b6 $14) 8. Bxf7+ $1 $18 {[%emt 0:00:12]} Kxf7 {[%emt 0:03:29]} 9. Ng5+ {[%emt 0:00:09]} Kg8 {[%emt 0:00:08]} 10. Ne6 {[%emt 0:00:05]} Qe8 {[%emt 0:00:04]} 11. Nc7 {[%emt 0:00:04]} Qf7 {[%emt 0:03:36]} 12. Nxa8 {[%emt 0:01:29]} h6 {[%emt 0:01:48]} 13. O-O {[%emt 0:03:28]} Kh7 {[%emt 0:00:07]} 14. d3 {[%emt 0:02:39]} g5 $146 {[%emt 0:14:00]} ({Predecessor:} 14... Rf8 15. f4 c4 16. d4 b5 17. e5 Nd5 18. Nxd5 Qxd5 19. Nc7 Qe4 20. Re1 Qc6 21. Ne6 Bb7 22. d5 Qxd5 23. Qxd5 Bxd5 24. Nxf8+ Bxf8 25. exd6 exd6 26. Be3 {1-0 Subelj,J (2418)-Herega,N (2052) Mestre Sheraton op-A 1st 2021 (2)}) 15. Be3 {[%emt 0:11:31]} Ne5 {[%emt 0:04:05]} 16. Nb6 {[%emt 0:01:56]} Be6 {[%emt 0:01:02]} 17. f3 {[%emt 0:01:13]} Nh5 {[%emt 0:04:14]} 18. d4 {[%emt 0:07:16]} cxd4 {[%emt 0:02:41]} 19. Bxd4 {[%emt 0:00:08]} Nf4 {[%emt 0:00:28]} 20. Ncd5 {[%emt 0:00:48]} Nxf3+ {[%emt 0:04:18]} 21. Qxf3 {[%emt 0:02:31]} ({Resist} 21. Rxf3 $6 Bxd4+ 22. Kh1 (22. Qxd4 Ne2+ 23. Kh1 Nxd4 $11) 22... Bxb6 $14) 21... Bxd4+ {[%emt 0:00:09]} 22. Kh1 {[%emt 0:00:04]} Rf8 {[%emt 0:20:28]} 23. c3 {[%emt 0:07:21]} Bg7 {[%emt 0:03:24]} 24. Nxf4 {[%emt 0:01:11]} gxf4 {[%emt 0:00:19]} 25. Nd5 {[%emt 0:00:33]} Be5 {[%emt 0:00:45]} 26. g3 {[%emt 0:05:33]} fxg3 {[%emt 0:08:00]} 27. Qxf7+ {[%emt 0:00:09]} Rxf7 {[%emt 0:00:08]} 28. Rxf7+ {[%emt 0:00:30]} Bxf7 {[%emt 0:00:01]} 29. hxg3 {[%emt 0:00:46]} ({Weaker is} 29. Nxe7 gxh2 30. Rf1 Ba2 $14) 29... Bxg3 {[%emt 0:08:28]} 30. Nxe7 {[%emt 0:01:12]} Bb3 {[%emt 0:00:37]} 31. Nf5 {[%emt 0:02:58]} Be5 {[%emt 0:01:04]} 32. Nd4 {[%emt 0:02:37]} Bc4 {[%emt 0:01:10]} 33. Rd1 {[%emt 0:04:24]} h5 {[%emt 0:03:54]} 34. Kg2 {[%emt 0:00:40]} Kg6 {[%emt 0:00:51]} 35. Nf3 {[%emt 0:20:39]} Bf4 {[%emt 0:01:43]} 36. Kf2 {[%emt 0:01:25]} Bb5 {[%emt 0:04:34]} 37. Nh4+ {[%emt 0:03:18]} Kg5 {[%emt 0:03:01]} 38. Nf5 {[%emt 0:02:45]} Ba4 {[%emt 0:01:01]} 39. Rd4 {[%emt 0:04:50]} Bc6 {[%emt 0:00:43]} 40. Kf3 {[%emt 0:01:22]} Bc1 {[%emt 0:04:55]} 41. b3 {[%emt 0:35:28]} ({Don't do} 41. Rxd6 Bxb2 42. Nd4 Ba3) 41... Bb2 {[%emt 0:05:13]} 42. Rd3 {[%emt 0:00:00]} h4 {[%emt 0:07:50]} 43. Nxd6 {[%emt 0:00:00]} Bc1 {[%emt 0:00:08]} 44. Nf7+ {[%emt 0:00:00]} Kf6 {[%emt 0:04:29]} 45. Nd8 {[%emt 0:00:00]} Bb5 {[%emt 0:00:57]} 46. c4 {[%emt 0:00:00]} Be8 {[%emt 0:00:02]} 47. Kg4 {[%emt 0:00:00]} Ba3 {[%emt 0:03:17]} 48. e5+ {[%emt 0:00:00]} Ke7 {[%emt 0:00:31]} 49. Nxb7 {[%emt 0:00:00]} Bc6 {[%emt 0:03:46]} 50. Nd8 {[%emt 0:00:00]} Be4 {[%emt 0:01:54]} 51. Rd4 {[%emt 0:00:00]} Bg2 {[%emt 0:00:33]} 52. Kxh4 {[%emt 0:00:00]} Bb4 {[%emt 0:00:18]} 53. e6 {[%emt 0:00:00]} Bd6 {[%emt 0:01:54]} 54. Kg5 {[%emt 0:00:00]} Bf3 {[%emt 0:00:57]} 55. Rxd6 {[%emt 0:00:00]} 1-0

[Event "Smuk Skak GM Tournament 2024"]
[Site "Skanderborg"]
[Date "2024.08.22"]
[Round "6.5"]
[White "Aczel, Gergely"]
[Black "Vinter-Schou, Uffe"]
[Result "0-1"]
[ECO "A10"]
[WhiteElo "2485"]
[BlackElo "2340"]
[Annotator "TA"]
[PlyCount "74"]
[EventDate "2024.08.11"]
[EventType "tourn"]
[EventCountry "DEN"]
[SourceTitle "playchess.com"]
[Source "ChessBase"]
[SourceQuality "1"]
[TimeControl "40/5400+30:1800+30"]

{[%evp 13,74,51,45,20,34,28,34,28,41,25,60,74,65,62,66,118,107,97,139,155,120,47,41,37,30,0,75,91,79,75,89,-62,0,0,0,-46,-29,-206,-193,-258,-329,-336,-295,-561,-552,-536,-583,-586,-555,-927,-739,-841,-726,-895,-888,-968,-936,-1002,-733,-1250,-1021,-2112,-2102]} 1. c4 {[%emt 0:00:31]} g6 {[%emt 0:00:33]} 2. d4 {[%emt 0:00:09]} Bg7 {[%emt 0:00:43]} 3. Nc3 {[%emt 0:00:11]} c5 {[%emt 0:00:33]} 4. d5 {[%emt 0:00:06]} Nf6 {[%emt 0:00:12]} 5. e4 {[%emt 0:02:30]} d6 {[%emt 0:00:07]} 6. h3 {[%emt 0:05:12]} O-O {[%emt 0:00:27]} 7. Nf3 {[%emt 0:00:06][%cal Bg1f3,Bf3d2,Bd2f1,Bf1g3][%mdl 32]} e6 {[%emt 0:00:14]} 8. Be3 {[%emt 0:00:51]} Na6 {[%emt 0:06:40]} 9. Be2 {[%emt 0:00:54]} Nc7 {[%emt 0:00:11]} 10. a4 {[%emt 0:00:53] White is slightly better.} e5 {[%emt 0:02:26]} 11. Nd2 {[%emt 0:01:07]} Kh8 {[%emt 0:03:48]} 12. h4 {[%emt 0:15:46]} h5 {[%emt 0:08:41]} 13. f3 {[%emt 0:09:03]} Na6 {[%emt 0:09:47]} 14. g4 {[%emt 0:02:24]} Nb4 {[%emt 0:03:09]} 15. Nf1 {[%emt 0:07:46]} Nh7 {[%emt 0:13:34]} 16. gxh5 $1 {[%emt 0:17:51]} gxh5 {[%emt 0:00:02]} 17. Qd2 {[%emt 0:01:08]} (17. Ng3 $16) 17... f5 $14 {[%emt 0:07:02]} 18. exf5 {[%emt 0:00:13]} Bxf5 {[%emt 0:00:27] ...Nc2+ would now be deadly.} 19. Ne4 {[%emt 0:00:09]} Qd7 {[%emt 0:08:07]} (19... Bg6 $11 {remains equal.}) 20. Nfg3 $16 {[%emt 0:01:21]} Bg6 {[%emt 0:00:07][%cal Of8f4]} 21. b3 $1 {[%emt 0:02:44]} Rf4 {[%emt 0:04:19][%cal Od7e7]} 22. Kf2 $2 {[%emt 0:10:16] [#]} (22. Bxf4 $2 exf4 23. Qxf4 Nc2+ (23... Bxa1 $2 24. Qh6 $19) 24. Kd1 Nxa1 $19) (22. O-O-O $16) 22... Raf8 $1 {[%emt 0:00:16]} 23. Kg2 $1 $11 {[%emt 0:00:26]} Qe7 {[%emt 0:03:28][%cal Oh7f6]} 24. Raf1 {[%emt 0:05:11] [#]} (24. Rag1 $11) 24... Bh6 $1 $15 {[%emt 0:00:48][%cal Of8g8]} 25. Rh2 $2 {[%emt 0:02:07] [#] This costs White the game.} (25. Rfg1 $11) (25. Rh3 Nf6) 25... Rg8 $1 $19 {[%emt 0:00:13][%cal Og6e4] Hoping for ...Bxe4!} (25... Bxe4 26. fxe4 Rxf1 27. Bxf1) 26. Kf2 {[%emt 0:07:04] [#]} (26. Rh3 {was worth a try.} Bf5 27. Rfh1 (27. Bxf4 $2 exf4 28. Rfh1 Bxe4 $19)) 26... Nf6 $1 {[%emt 0:04:16] And now ...Ng4+ would win.} 27. Ke1 {[%emt 0:03:18]} ({Don't go for} 27. Bxf4 $2 Bxf4 28. Nxf6 Bxd2 $19) 27... Qf8 {[%emt 0:14:32][%cal Rg6e4]} ({Much less strong is} 27... Nxe4 28. Nxe4 Bxe4 (28... Rxh4 29. Bxh6 Bxe4 30. Bg5 $15) 29. fxe4) 28. Rhf2 $2 {[%emt 0:00:34]} (28. Ng5 {is a better defense.} Nc2+ 29. Kd1 Nxe3+ 30. Qxe3) 28... Bxe4 {[%emt 0:02:48] Black is clearly winning.} 29. Nxe4 {[%emt 0:00:17]} Nxe4 {[%emt 0:00:18]} 30. fxe4 {[%emt 0:00:06]} Rxf2 {[%emt 0:00:05]} 31. Bxh6 {[%emt 0:01:37]} Rxf1+ {[%emt 0:00:06]} 32. Bxf1 {[%emt 0:00:06] [#]} Nc2+ $1 {[%emt 0:00:49][%mdl 512]} 33. Qxc2 {[%emt 0:01:14]} (33. Ke2 Nd4+) 33... Qxh6 {[%emt 0:00:02]} 34. Qe2 {[%emt 0:01:28]} Qc1+ {[%emt 0:01:26]} 35. Kf2 {[%emt 0:00:19]} Qf4+ {[%emt 0:00:21]} 36. Ke1 {[%emt 0:00:01]} Qxh4+ {[%emt 0:00:29]} 37. Kd2 {[%emt 0:00:06]} Rf8 {[%emt 0:01:16] Weighted Error Value: White=0.93/Black=0.42.  Loses game:     	White=1     	---        Mistake:       	White=5     	Black=2      Inaccurate:     	White=1     	Black=2      OK:         	White=4     	Black=9      Best:        	White=3     	Black=1      Strong:       	White=3     	Black=2} 0-1